[Event "*** Titled Tuesday Blitz"]
[Site "Chess.com"]
[Date "2019.02.05"]
[Round "9"]
[White "MehdiHosseinipour"]
[Black "MatthewG-p4p"]
[Result "1-0"]
[WhiteElo "2541"]
[BlackElo "2691"]
[TimeControl "180+2"]
[EndTime "15:17:24 PST"]
[Termination "MehdiHosseinipour won by resignation"]

1. e4 {[%clk 0:03:01.9]} 1... e6 {[%clk 0:03:00.8]} 2. d4 {[%clk 0:03:03.2]}
2... d5 {[%clk 0:03:02.3]} 3. Nd2 {[%clk 0:03:04.7]} 3... Be7 {[%clk 0:02:57.6]}
4. Bd3 {[%clk 0:03:04.7]} 4... c5 {[%clk 0:02:57.7]} 5. dxc5 {[%clk 0:03:06.2]}
5... Nf6 {[%clk 0:02:58.7]} 6. Qe2 {[%clk 0:03:07.4]} 6... O-O {[%clk 0:02:59]}
7. Ngf3 {[%clk 0:03:08]} 7... a5 {[%clk 0:02:59.1]} 8. O-O {[%clk 0:03:08.5]}
8... Na6 {[%clk 0:03:00.4]} 9. exd5 {[%clk 0:03:09.6]} 9... Nxd5 {[%clk
0:02:58.3]} 10. Ne4 {[%clk 0:03:05.8]} 10... Nxc5 {[%clk 0:02:58.2]} 11. Nxc5
{[%clk 0:03:05.6]} 11... Bxc5 {[%clk 0:02:59.8]} 12. Bg5 {[%clk 0:02:59.1]}
12... f6 {[%clk 0:02:55.4]} 13. Bd2 {[%clk 0:02:58.3]} 13... Qc7 {[%clk
0:02:51]} 14. Bc4 {[%clk 0:02:50.9]} 14... Kh8 {[%clk 0:02:42.2]} 15. Rad1
{[%clk 0:02:46.5]} 15... Nf4 {[%clk 0:02:20.6]} 16. Bxf4 {[%clk 0:02:40.7]}
16... Qxf4 {[%clk 0:02:21.9]} 17. Bxe6 {[%clk 0:02:39.3]} 17... Re8 {[%clk
0:02:10]} 18. Bxc8 {[%clk 0:02:40.1]} 18... Raxc8 {[%clk 0:02:07.6]} 19. Qb5
{[%clk 0:02:38.2]} 19... b6 {[%clk 0:02:05.4]} 20. Rfe1 {[%clk 0:02:35.8]} 20...
Rf8 {[%clk 0:01:38.1]} 21. c3 {[%clk 0:02:32.2]} 21... g5 {[%clk 0:01:23.3]} 22.
Qe2 {[%clk 0:02:13.7]} 22... Rfe8 {[%clk 0:01:09.5]} 23. Qxe8+ {[%clk
0:01:56.3]} 23... Rxe8 {[%clk 0:01:10.2]} 24. Rxe8+ {[%clk 0:01:58.2]} 24... Kg7
{[%clk 0:01:11.8]} 25. Nd4 {[%clk 0:01:59.1]} 25... Kf7 {[%clk 0:01:04.4]} 26.
Ree1 {[%clk 0:01:57.7]} 26... a4 {[%clk 0:01:02.8]} 27. a3 {[%clk 0:01:48.2]}
27... h5 {[%clk 0:01:03.6]} 28. Re2 {[%clk 0:01:40.7]} 28... h4 {[%clk 0:01:03]}
29. h3 {[%clk 0:01:24.4]} 29... g4 {[%clk 0:01:01.5]} 30. Rde1 {[%clk
0:00:32.8]} 30... gxh3 {[%clk 0:00:59.6]} 31. gxh3 {[%clk 0:00:34.7]} 31... Bxd4
{[%clk 0:00:53.9]} 32. cxd4 {[%clk 0:00:34.8]} 32... Qxd4 {[%clk 0:00:55.3]} 33.
Re7+ {[%clk 0:00:32.3]} 33... Kg6 {[%clk 0:00:56.3]} 34. R1e2 {[%clk 0:00:32.1]}
34... Qd1+ {[%clk 0:00:52.6]} 35. Kg2 {[%clk 0:00:33.5]} 35... Qd5+ {[%clk
0:00:53.8]} 36. Kg1 {[%clk 0:00:35]} 36... Qf5 {[%clk 0:00:51.5]} 37. R7e3
{[%clk 0:00:34.9]} 37... Qb1+ {[%clk 0:00:51.2]} 38. Kg2 {[%clk 0:00:36.1]}
38... Kg5 {[%clk 0:00:51.5]} 39. Re4 {[%clk 0:00:34.7]} 39... f5 {[%clk
0:00:47.4]} 40. Rd4 {[%clk 0:00:25.6]} 40... Qc1 {[%clk 0:00:36.9]} 41. Rd5
{[%clk 0:00:15.8]} 41... Qc6 {[%clk 0:00:34.5]} 42. Re5 {[%clk 0:00:17]} 42...
Qc2 {[%clk 0:00:29]} 43. Rxf5+ {[%clk 0:00:15.8]} 43... Kg6 {[%clk 0:00:30.1]}
44. Rb5 {[%clk 0:00:12.2]} 44... Qe4+ {[%clk 0:00:28.2]} 45. Rf3 {[%clk
0:00:13.6]} 45... Qc6 {[%clk 0:00:19.7]} 46. Rb4 {[%clk 0:00:14.7]} 46... Kg5
{[%clk 0:00:20.1]} 47. Rg4+ {[%clk 0:00:15.8]} 47... Kh5 {[%clk 0:00:21.6]} 48.
Rf4 {[%clk 0:00:17.3]} 48... Qc1 {[%clk 0:00:20.3]} 49. Rf5+ {[%clk 0:00:18.4]}
49... Kg6 {[%clk 0:00:21.5]} 50. Rf6+ {[%clk 0:00:20.3]} 50... Kg7 {[%clk
0:00:22.7]} 51. Rxb6 {[%clk 0:00:22.2]} 51... Qc2 {[%clk 0:00:21.4]} 52. Rb4
{[%clk 0:00:23.1]} 52... Kg6 {[%clk 0:00:21.2]} 53. Rg4+ {[%clk 0:00:24.2]}
53... Kh5 {[%clk 0:00:21.9]} 54. Rb4 {[%clk 0:00:24.2]} 54... Qd1 {[%clk
0:00:22]} 55. Rff4 {[%clk 0:00:24.1]} 55... Qd5+ {[%clk 0:00:22.5]} 56. Rbe4
{[%clk 0:00:25.8]} 56... Qb7 {[%clk 0:00:21.6]} 57. Rxh4+ {[%clk 0:00:26.6]}
57... Kg5 {[%clk 0:00:23.3]} 58. Rg4+ {[%clk 0:00:27.9]} 58... Kf5 {[%clk
0:00:24.9]} 59. Rf4+ {[%clk 0:00:29.5]} 59... Kg5 {[%clk 0:00:26.3]} 60. Kg3
{[%clk 0:00:31]} 60... Qxb2 {[%clk 0:00:26.1]} 61. Rxa4 {[%clk 0:00:32.1]} 61...
Qb3+ {[%clk 0:00:26.6]} 62. Kg2 {[%clk 0:00:33.6]} 62... Qb7+ {[%clk 0:00:27.6]}
63. Rf3 {[%clk 0:00:34.7]} 63... Kh5 {[%clk 0:00:27]} 64. Rg4 {[%clk 0:00:35.2]}
64... Qd5 {[%clk 0:00:24.8]} 65. a4 {[%clk 0:00:36.4]} 65... Qa8 {[%clk
0:00:24.5]} 66. Rf4 {[%clk 0:00:31.1]} 66... Qg8+ {[%clk 0:00:24.6]} 67. Kf1
{[%clk 0:00:31]} 67... Qa2 {[%clk 0:00:19.9]} 68. a5 {[%clk 0:00:32]} 68... Qb1+
{[%clk 0:00:19.7]} 69. Kg2 {[%clk 0:00:33]} 69... Qg6+ {[%clk 0:00:21.1]} 70.
Rg4 {[%clk 0:00:34.5]} 70... Qa6 {[%clk 0:00:19.8]} 71. Ra4 {[%clk 0:00:26.9]}
71... Qg6+ {[%clk 0:00:19.6]} 72. Rg4 {[%clk 0:00:23.9]} 72... Qa6 {[%clk
0:00:21]} 73. Rf5+ {[%clk 0:00:19.8]} 73... Kh6 {[%clk 0:00:21.8]} 74. Rgf4
{[%clk 0:00:21.1]} 74... Qc6+ {[%clk 0:00:21]} 75. Kg3 {[%clk 0:00:22.5]} 75...
Qc3+ {[%clk 0:00:20.4]} 76. Kg4 {[%clk 0:00:20.9]} 76... Qg7+ {[%clk 0:00:17.8]}
77. Kf3 {[%clk 0:00:20.3]} 77... Qc3+ {[%clk 0:00:18.8]} 78. Kg2 {[%clk
0:00:20.9]} 78... Qc6+ {[%clk 0:00:18.6]} 79. Rf3 {[%clk 0:00:22.5]} 79... Qg6+
{[%clk 0:00:19]} 80. Kf1 {[%clk 0:00:22.2]} 80... Qa6+ {[%clk 0:00:19.5]} 81.
Kg2 {[%clk 0:00:22.8]} 81... Qg6+ {[%clk 0:00:20.3]} 82. Kh1 {[%clk 0:00:24]}
82... Qh7 {[%clk 0:00:10.6]} 83. a6 {[%clk 0:00:19.4]} 83... Qa7 {[%clk
0:00:11.4]} 84. Rf6+ {[%clk 0:00:20.2]} 84... Kg5 {[%clk 0:00:12.8]} 85. Kg2
{[%clk 0:00:20.7]} 85... Qa8 {[%clk 0:00:10.8]} 86. Kg3 {[%clk 0:00:21]} 86...
Qb8+ {[%clk 0:00:11.4]} 87. R3f4 {[%clk 0:00:22.6]} 87... Qb3+ {[%clk
0:00:12.5]} 88. f3 {[%clk 0:00:24]} 88... Qb8 {[%clk 0:00:12.1]} 89. a7 {[%clk
0:00:22.7]} 89... Qb1 {[%clk 0:00:05.4]} 90. R4f5+ {[%clk 0:00:21.6]} 1-0

[Event "*** Titled Tuesday Blitz"]
[Site "Chess.com"]
[Date "2019.02.05"]
[Round "10"]
[White "Didici"]
[Black "champ2005"]
[Result "0-1"]
[WhiteElo "2580"]
[BlackElo "2613"]
[TimeControl "180+2"]
[EndTime "15:21:46 PST"]
[Termination "champ2005 won by resignation"]

1. d4 {[%clk 0:03:01.9]} 1... Nf6 {[%clk 0:03:00.7]} 2. c4 {[%clk 0:03:02.3]}
2... g6 {[%clk 0:03:01.9]} 3. Nf3 {[%clk 0:03:02]} 3... Bg7 {[%clk 0:03:02.4]}
4. g3 {[%clk 0:03:03.1]} 4... O-O {[%clk 0:03:03.2]} 5. Bg2 {[%clk 0:03:04.7]}
5... c5 {[%clk 0:03:04.8]} 6. O-O {[%clk 0:03:05.4]} 6... cxd4 {[%clk
0:03:06.1]} 7. Nxd4 {[%clk 0:03:06.3]} 7... Nc6 {[%clk 0:03:07.7]} 8. Nc3 {[%clk
0:03:03.9]} 8... Qa5 {[%clk 0:03:08.2]} 9. Nb3 {[%clk 0:03:03.5]} 9... Qh5
{[%clk 0:03:08.6]} 10. c5 {[%clk 0:03:04.7]} 10... a5 {[%clk 0:03:08.6]} 11. Na4
{[%clk 0:03:02.8]} 11... d6 {[%clk 0:03:07.5]} 12. cxd6 {[%clk 0:03:01.9]} 12...
Rd8 {[%clk 0:03:08.2]} 13. Nb6 {[%clk 0:02:59.6]} 13... Rxd6 {[%clk 0:03:08.8]}
14. Qe1 {[%clk 0:02:59.5]} 14... Rb8 {[%clk 0:03:04.8]} 15. Nxc8 {[%clk
0:02:46.1]} 15... Rxc8 {[%clk 0:03:05.6]} 16. h3 {[%clk 0:02:46.9]} 16... a4
{[%clk 0:03:02.4]} 17. Nd2 {[%clk 0:02:38.6]} 17... Nd4 {[%clk 0:02:56.5]} 18.
g4 {[%clk 0:02:36.9]} 18... Qb5 {[%clk 0:02:56.8]} 19. Nf3 {[%clk 0:02:28]}
19... Nc2 {[%clk 0:02:56.2]} 0-1

[Event "*** Titled Tuesday Blitz"]
[Site "Chess.com"]
[Date "2019.02.05"]
[Round "10"]
[White "Caisachess"]
[Black "MFguimaraes"]
[Result "0-1"]
[WhiteElo "2337"]
[BlackElo "2297"]
[TimeControl "180+2"]
[EndTime "15:22:10 PST"]
[Termination "MFguimaraes won by resignation"]

1. e4 {[%clk 0:03:01.9]} 1... e5 {[%clk 0:02:59.3]} 2. Nf3 {[%clk 0:03:02.6]}
2... Nc6 {[%clk 0:02:59.1]} 3. Nc3 {[%clk 0:03:04.1]} 3... Nf6 {[%clk
0:02:59.9]} 4. d4 {[%clk 0:03:05.4]} 4... exd4 {[%clk 0:03:01.8]} 5. Nd5 {[%clk
0:03:06.8]} 5... Be7 {[%clk 0:03:01.8]} 6. Nxe7 {[%clk 0:03:06.8]} 6... Qxe7
{[%clk 0:03:01.7]} 7. Bg5 {[%clk 0:03:04.2]} 7... Qxe4+ {[%clk 0:03:02.1]} 8.
Be2 {[%clk 0:03:04.1]} 8... O-O {[%clk 0:02:45.5]} 9. Bxf6 {[%clk 0:03:04.7]}
9... gxf6 {[%clk 0:02:47.4]} 10. O-O {[%clk 0:03:06.2]} 10... d5 {[%clk
0:02:47]} 11. Bd3 {[%clk 0:03:05.7]} 11... Qf4 {[%clk 0:02:48.1]} 12. Re1 {[%clk
0:03:02.1]} 12... Bg4 {[%clk 0:02:48.8]} 13. Be2 {[%clk 0:02:58.3]} 13... Bxf3
{[%clk 0:02:43.2]} 14. Bxf3 {[%clk 0:02:59.1]} 14... Rad8 {[%clk 0:02:42.7]} 15.
Qd3 {[%clk 0:02:51.3]} 15... Ne5 {[%clk 0:02:39.8]} 16. Qe2 {[%clk 0:02:41.7]}
16... Nxf3+ {[%clk 0:02:37.7]} 17. Qxf3 {[%clk 0:02:43.6]} 17... Qxf3 {[%clk
0:02:38.8]} 18. gxf3 {[%clk 0:02:45.5]} 18... Rfe8 {[%clk 0:02:40.1]} 19. Rad1
{[%clk 0:02:42.7]} 19... c5 {[%clk 0:02:39.6]} 20. Kg2 {[%clk 0:02:42.5]} 20...
Kf8 {[%clk 0:02:38.5]} 21. Kg3 {[%clk 0:02:43.8]} 21... Rxe1 {[%clk 0:02:37]}
22. Rxe1 {[%clk 0:02:44.6]} 22... Re8 {[%clk 0:02:38.6]} 0-1

[Event "*** Titled Tuesday Blitz"]
[Site "Chess.com"]
[Date "2019.02.05"]
[Round "10"]
[White "chesstatour"]
[Black "JoachimMouhamad"]
[Result "1-0"]
[WhiteElo "2016"]
[BlackElo "2264"]
[TimeControl "180+2"]
[EndTime "15:23:18 PST"]
[Termination "chesstatour won by resignation"]

1. c4 {[%clk 0:03:01.9]} 1... c5 {[%clk 0:02:59.7]} 2. Nf3 {[%clk 0:03:01.9]}
2... Nc6 {[%clk 0:02:58.6]} 3. d4 {[%clk 0:03:02.8]} 3... cxd4 {[%clk
0:02:59.3]} 4. Nxd4 {[%clk 0:03:04.7]} 4... g6 {[%clk 0:02:58.9]} 5. Nc3 {[%clk
0:03:04.6]} 5... Bg7 {[%clk 0:02:59.5]} 6. Nc2 {[%clk 0:03:06.1]} 6... Nf6
{[%clk 0:02:58]} 7. g3 {[%clk 0:03:06.7]} 7... O-O {[%clk 0:02:52.5]} 8. Bg2
{[%clk 0:03:07.4]} 8... d6 {[%clk 0:02:49.4]} 9. O-O {[%clk 0:03:07.8]} 9... Be6
{[%clk 0:02:43.6]} 10. b3 {[%clk 0:03:01]} 10... d5 {[%clk 0:02:44.5]} 11. cxd5
{[%clk 0:02:37.4]} 11... Nxd5 {[%clk 0:02:43.9]} 12. Nxd5 {[%clk 0:02:36.1]}
12... Bxa1 {[%clk 0:02:42.3]} 13. Nxa1 {[%clk 0:02:36.2]} 13... Rc8 {[%clk
0:02:38.4]} 14. Nf4 {[%clk 0:02:08]} 14... Qxd1 {[%clk 0:02:34.5]} 15. Rxd1
{[%clk 0:02:09.9]} 15... Rfd8 {[%clk 0:02:31.5]} 16. Re1 {[%clk 0:01:54.8]}
16... Bf5 {[%clk 0:02:30.6]} 17. e4 {[%clk 0:01:49.4]} 17... Bg4 {[%clk
0:02:31.8]} 18. Nd5 {[%clk 0:01:29.8]} 18... Ne5 {[%clk 0:02:27.3]} 19. Nxe7+
{[%clk 0:01:19.7]} 1-0

[Event "*** Titled Tuesday Blitz"]
[Site "Chess.com"]
[Date "2019.02.05"]
[Round "10"]
[White "fm_magua"]
[Black "evgenysharapov"]
[Result "0-1"]
[WhiteElo "2407"]
[BlackElo "2348"]
[TimeControl "180+2"]
[EndTime "15:23:53 PST"]
[Termination "evgenysharapov won by resignation"]

1. e4 {[%clk 0:02:51.5]} 1... c5 {[%clk 0:03:00.1]} 2. Nf3 {[%clk 0:02:51.6]}
2... d6 {[%clk 0:03:00.9]} 3. d4 {[%clk 0:02:53.1]} 3... cxd4 {[%clk 0:03:02]}
4. Nxd4 {[%clk 0:02:55]} 4... Nf6 {[%clk 0:03:02.6]} 5. Nc3 {[%clk 0:02:56.3]}
5... Nc6 {[%clk 0:03:03.1]} 6. Bc4 {[%clk 0:02:57.2]} 6... Qb6 {[%clk
0:03:03.4]} 7. Nde2 {[%clk 0:02:57.6]} 7... e6 {[%clk 0:03:03.4]} 8. O-O {[%clk
0:02:58.6]} 8... Be7 {[%clk 0:03:04.1]} 9. Bb3 {[%clk 0:02:59.7]} 9... O-O
{[%clk 0:03:04.5]} 10. Kh1 {[%clk 0:03:00.2]} 10... a6 {[%clk 0:03:03]} 11. Bg5
{[%clk 0:03:01.1]} 11... Qc7 {[%clk 0:03:03.4]} 12. f4 {[%clk 0:03:01.4]} 12...
b5 {[%clk 0:03:01.6]} 13. Ng3 {[%clk 0:03:02.3]} 13... Na5 {[%clk 0:02:59.4]}
14. Bxf6 {[%clk 0:02:59.7]} 14... Bxf6 {[%clk 0:02:59]} 15. e5 {[%clk
0:03:01.1]} 15... dxe5 {[%clk 0:02:51.8]} 16. Nce4 {[%clk 0:03:01.6]} 16... Be7
{[%clk 0:02:48.1]} 17. Qh5 {[%clk 0:02:48]} 17... Nxb3 {[%clk 0:02:42.2]} 18.
axb3 {[%clk 0:02:46.7]} 18... exf4 {[%clk 0:02:42.4]} 19. Ne2 {[%clk 0:02:40.2]}
19... g6 {[%clk 0:02:42.5]} 20. Qh6 {[%clk 0:02:38.5]} 20... Bb7 {[%clk
0:02:41.8]} 21. Ng5 {[%clk 0:02:34.2]} 21... Bxg5 {[%clk 0:02:41.3]} 22. Qxg5
{[%clk 0:02:36.1]} 22... e5 {[%clk 0:02:35.7]} 23. c3 {[%clk 0:02:33.1]} 23...
f6 {[%clk 0:02:35.5]} 24. Qh4 {[%clk 0:02:32.4]} 24... g5 {[%clk 0:02:35.5]} 25.
Qh5 {[%clk 0:02:31.3]} 25... Qf7 {[%clk 0:02:31.7]} 26. Qg4 {[%clk 0:02:31.8]}
26... h5 {[%clk 0:02:28.6]} 27. Qf5 {[%clk 0:02:32.4]} 27... Rad8 {[%clk
0:02:22.4]} 28. Rad1 {[%clk 0:02:31]} 28... Kg7 {[%clk 0:02:21.8]} 29. h4 {[%clk
0:02:26.4]} 29... gxh4 {[%clk 0:02:20.7]} 30. Qh3 {[%clk 0:02:23]} 30... Qg6
{[%clk 0:02:17.2]} 31. Kh2 {[%clk 0:02:16.5]} 31... Qg4 {[%clk 0:02:13.5]} 32.
Rxd8 {[%clk 0:02:02.9]} 0-1

[Event "*** Titled Tuesday Blitz"]
[Site "Chess.com"]
[Date "2019.02.05"]
[Round "10"]
[White "josmito10"]
[Black "ChristopherYoo"]
[Result "1-0"]
[WhiteElo "2749"]
[BlackElo "2669"]
[TimeControl "180+2"]
[EndTime "15:24:00 PST"]
[Termination "josmito10 won by resignation"]

1. d4 {[%clk 0:03:01.7]} 1... Nf6 {[%clk 0:03:00.6]} 2. c4 {[%clk 0:03:03]} 2...
g6 {[%clk 0:03:01.7]} 3. Nc3 {[%clk 0:03:04.2]} 3... d5 {[%clk 0:03:02.6]} 4.
Bg5 {[%clk 0:03:05.2]} 4... Ne4 {[%clk 0:03:02.2]} 5. Bh4 {[%clk 0:03:06.1]}
5... Nxc3 {[%clk 0:03:03.1]} 6. bxc3 {[%clk 0:03:07.8]} 6... dxc4 {[%clk
0:03:04]} 7. e3 {[%clk 0:03:09.3]} 7... Be6 {[%clk 0:03:02.1]} 8. Be2 {[%clk
0:03:10.7]} 8... Bg7 {[%clk 0:02:45.2]} 9. Nh3 {[%clk 0:03:11.8]} 9... Nd7
{[%clk 0:02:43.4]} 10. Nf4 {[%clk 0:03:11.2]} 10... Bf5 {[%clk 0:02:26]} 11.
Bxc4 {[%clk 0:03:11.9]} 11... h6 {[%clk 0:02:20.2]} 12. g4 {[%clk 0:02:42.5]}
12... Be4 {[%clk 0:02:08.6]} 13. f3 {[%clk 0:02:43]} 13... Bc6 {[%clk
0:02:08.9]} 14. Bxf7+ {[%clk 0:02:40.7]} 14... Kxf7 {[%clk 0:01:58.3]} 15. Qb3+
{[%clk 0:02:41.8]} 15... Ke8 {[%clk 0:02:00]} 16. Ne6 {[%clk 0:02:41.3]} 16...
Qb8 {[%clk 0:01:39.7]} 17. Nxg7+ {[%clk 0:02:40.3]} 17... Kd8 {[%clk 0:01:40.4]}
18. Ne6+ {[%clk 0:02:30.9]} 18... Kc8 {[%clk 0:01:39.2]} 19. d5 {[%clk
0:02:27.8]} 19... Ne5 {[%clk 0:01:37.4]} 20. Bg3 {[%clk 0:02:20.8]} 20... Nxf3+
{[%clk 0:01:31.5]} 21. Ke2 {[%clk 0:02:20.1]} 21... Bd7 {[%clk 0:01:24]} 22.
Kxf3 {[%clk 0:02:13.2]} 22... Bxe6 {[%clk 0:01:22.3]} 23. dxe6 {[%clk 0:02:14]}
23... b5 {[%clk 0:01:20.2]} 24. Qd5 {[%clk 0:02:13.4]} 24... Qb6 {[%clk
0:01:16.7]} 1-0

[Event "*** Titled Tuesday Blitz"]
[Site "Chess.com"]
[Date "2019.02.05"]
[Round "10"]
[White "Anar_Aliakbarov"]
[Black "Ekko_li"]
[Result "1-0"]
[WhiteElo "2454"]
[BlackElo "2456"]
[TimeControl "180+2"]
[EndTime "15:24:19 PST"]
[Termination "Anar_Aliakbarov won by resignation"]

1. d4 {[%clk 0:03:01.9]} 1... Nf6 {[%clk 0:02:57.6]} 2. c4 {[%clk 0:03:03.2]}
2... c5 {[%clk 0:02:55.8]} 3. d5 {[%clk 0:03:03.9]} 3... d6 {[%clk 0:02:57.3]}
4. Nc3 {[%clk 0:03:04.3]} 4... g6 {[%clk 0:02:58.4]} 5. e4 {[%clk 0:03:05.5]}
5... Bg7 {[%clk 0:02:59.6]} 6. Nf3 {[%clk 0:03:06.8]} 6... O-O {[%clk
0:03:00.6]} 7. Be2 {[%clk 0:03:07.9]} 7... a6 {[%clk 0:03:00.3]} 8. O-O {[%clk
0:03:07]} 8... Bg4 {[%clk 0:02:54.9]} 9. a4 {[%clk 0:02:57.7]} 9... Nbd7 {[%clk
0:02:52.6]} 10. h3 {[%clk 0:02:55.4]} 10... Bxf3 {[%clk 0:02:53]} 11. Bxf3
{[%clk 0:02:57.3]} 11... Ne8 {[%clk 0:02:52.1]} 12. Be2 {[%clk 0:02:55.6]} 12...
Nc7 {[%clk 0:02:50.3]} 13. Be3 {[%clk 0:02:56.4]} 13... a5 {[%clk 0:02:49.3]}
14. f4 {[%clk 0:02:56.9]} 14... Na6 {[%clk 0:02:50.2]} 15. Qd2 {[%clk
0:02:51.7]} 15... Nb4 {[%clk 0:02:51.5]} 16. Rae1 {[%clk 0:02:52.5]} 16... b6
{[%clk 0:02:50.3]} 17. Bg4 {[%clk 0:02:49.4]} 17... Nf6 {[%clk 0:02:48.4]} 18.
Bf3 {[%clk 0:02:48.4]} 18... Nd7 {[%clk 0:02:48.7]} 19. Nb5 {[%clk 0:02:47.1]}
19... Rc8 {[%clk 0:02:39]} 20. b3 {[%clk 0:02:48.1]} 20... Ra8 {[%clk
0:02:34.6]} 21. Qd1 {[%clk 0:02:48.7]} 21... Rc8 {[%clk 0:02:31.9]} 22. Bf2
{[%clk 0:02:49.7]} 22... Ra8 {[%clk 0:02:26.2]} 23. Qd2 {[%clk 0:02:49.6]} 23...
Rc8 {[%clk 0:02:26.2]} 24. Bg3 {[%clk 0:02:50.4]} 24... Ra8 {[%clk 0:02:18.4]}
25. e5 {[%clk 0:02:50.7]} 25... Nb8 {[%clk 0:02:12]} 26. exd6 {[%clk 0:02:45.5]}
26... exd6 {[%clk 0:02:12.4]} 27. f5 {[%clk 0:02:46.4]} 27... Nd7 {[%clk
0:02:06.9]} 28. Bxd6 {[%clk 0:02:46.1]} 28... Re8 {[%clk 0:01:59.4]} 29. Rxe8+
{[%clk 0:02:47.2]} 29... Qxe8 {[%clk 0:02:01.3]} 30. Nc7 {[%clk 0:02:48.3]}
30... Bd4+ {[%clk 0:02:01.9]} 31. Kh1 {[%clk 0:02:48.7]} 31... Qb8 {[%clk
0:02:02.3]} 32. fxg6 {[%clk 0:02:41.2]} 32... hxg6 {[%clk 0:02:01.1]} 33. Bg4
{[%clk 0:02:41.7]} 33... Nf6 {[%clk 0:01:57.3]} 34. Nxa8 {[%clk 0:02:20.2]}
34... Qxd6 {[%clk 0:01:57.5]} 35. Qf4 {[%clk 0:02:21.6]} 35... Qd8 {[%clk
0:01:57.1]} 36. Nc7 {[%clk 0:02:15.7]} 36... Nd3 {[%clk 0:01:57.7]} 37. Qg3
{[%clk 0:02:12]} 37... Be5 {[%clk 0:01:55.5]} 38. Qxd3 {[%clk 0:02:12.5]} 1-0

[Event "*** Titled Tuesday Blitz"]
[Site "Chess.com"]
[Date "2019.02.05"]
[Round "10"]
[White "DrVelja"]
[Black "Abund"]
[Result "0-1"]
[WhiteElo "2622"]
[BlackElo "2589"]
[TimeControl "180+2"]
[EndTime "15:24:31 PST"]
[Termination "Abund won by resignation"]

1. e4 {[%clk 0:03:01.9]} 1... c5 {[%clk 0:02:59.5]} 2. Nf3 {[%clk 0:03:03.1]}
2... Nc6 {[%clk 0:03:00.7]} 3. d4 {[%clk 0:03:04.7]} 3... cxd4 {[%clk
0:03:01.9]} 4. Nxd4 {[%clk 0:03:06.6]} 4... Nf6 {[%clk 0:03:03.2]} 5. Nc3 {[%clk
0:03:06.6]} 5... e5 {[%clk 0:03:04.4]} 6. Ndb5 {[%clk 0:03:08.2]} 6... d6 {[%clk
0:03:05.7]} 7. Nd5 {[%clk 0:03:09.7]} 7... Nxd5 {[%clk 0:03:06.3]} 8. exd5
{[%clk 0:03:11.6]} 8... Nb8 {[%clk 0:03:07.6]} 9. a4 {[%clk 0:03:09.4]} 9... Be7
{[%clk 0:03:06.6]} 10. Be2 {[%clk 0:03:10.9]} 10... O-O {[%clk 0:03:07.4]} 11.
O-O {[%clk 0:03:12.4]} 11... Nd7 {[%clk 0:03:07.3]} 12. Bd2 {[%clk 0:03:13.7]}
12... f5 {[%clk 0:02:55.2]} 13. a5 {[%clk 0:03:14.5]} 13... a6 {[%clk
0:02:54.1]} 14. Na3 {[%clk 0:03:14.1]} 14... e4 {[%clk 0:02:53.7]} 15. Nc4
{[%clk 0:03:13.6]} 15... Ne5 {[%clk 0:02:54.9]} 16. Nb6 {[%clk 0:03:09.6]} 16...
Rb8 {[%clk 0:02:55.5]} 17. f4 {[%clk 0:03:10]} 17... exf3 {[%clk 0:02:56.8]} 18.
Bxf3 {[%clk 0:03:09.1]} 18... Bf6 {[%clk 0:02:57.9]} 19. Rb1 {[%clk 0:02:42.4]}
19... Bd7 {[%clk 0:02:37.7]} 20. c4 {[%clk 0:02:42.1]} 20... g5 {[%clk
0:02:28.3]} 21. c5 {[%clk 0:02:41.3]} 21... Bb5 {[%clk 0:02:15]} 22. Re1 {[%clk
0:02:38.7]} 22... Nd3 {[%clk 0:02:01.6]} 23. Re6 {[%clk 0:02:34.5]} 23... Nxc5
{[%clk 0:01:50.3]} 24. Rxf6 {[%clk 0:02:34.4]} 24... Qxf6 {[%clk 0:01:47.7]} 25.
Bc3 {[%clk 0:02:35.2]} 25... Qg6 {[%clk 0:01:27.5]} 26. Qd4 {[%clk 0:02:35.3]}
26... g4 {[%clk 0:01:27.5]} 27. Bd1 {[%clk 0:02:21.5]} 27... Rbe8 {[%clk
0:01:27.9]} 28. Bc2 {[%clk 0:02:19.3]} 28... Ne4 {[%clk 0:01:21.7]} 29. Bxe4
{[%clk 0:02:14.8]} 29... Rxe4 {[%clk 0:01:22.6]} 30. Qd2 {[%clk 0:02:16.7]}
30... f4 {[%clk 0:01:15.2]} 0-1

[Event "*** Titled Tuesday Blitz"]
[Site "Chess.com"]
[Date "2019.02.05"]
[Round "10"]
[White "SimonKnightRivendell"]
[Black "Iyael"]
[Result "0-1"]
[WhiteElo "2004"]
[BlackElo "2010"]
[TimeControl "180+2"]
[EndTime "15:25:02 PST"]
[Termination "Iyael won by resignation"]

1. d4 {[%clk 0:03:01.9]} 1... Nf6 {[%clk 0:02:59.8]} 2. Nf3 {[%clk 0:03:02.8]}
2... g6 {[%clk 0:03:00.5]} 3. g3 {[%clk 0:03:00.9]} 3... Bg7 {[%clk 0:03:01.3]}
4. Bg2 {[%clk 0:03:02.1]} 4... d6 {[%clk 0:03:01.3]} 5. O-O {[%clk 0:03:03.2]}
5... O-O {[%clk 0:03:02.6]} 6. c4 {[%clk 0:03:03.5]} 6... Nbd7 {[%clk
0:03:03.1]} 7. Nc3 {[%clk 0:03:04.6]} 7... e5 {[%clk 0:03:04.1]} 8. dxe5 {[%clk
0:02:57.4]} 8... dxe5 {[%clk 0:03:03]} 9. e4 {[%clk 0:02:55.8]} 9... c6 {[%clk
0:03:02.5]} 10. Bg5 {[%clk 0:02:54]} 10... h6 {[%clk 0:02:59.8]} 11. Bxf6 {[%clk
0:02:54.9]} 11... Qxf6 {[%clk 0:03:00.5]} 12. Qc2 {[%clk 0:02:55.4]} 12... a5
{[%clk 0:02:55.8]} 13. a3 {[%clk 0:02:52.2]} 13... Nc5 {[%clk 0:02:55]} 14. b4
{[%clk 0:02:51.9]} 14... Ne6 {[%clk 0:02:53.6]} 15. Rfd1 {[%clk 0:02:44.9]}
15... axb4 {[%clk 0:02:52.1]} 16. axb4 {[%clk 0:02:45.1]} 16... Rxa1 {[%clk
0:02:52.6]} 17. Rxa1 {[%clk 0:02:46.1]} 17... Rd8 {[%clk 0:02:54]} 18. Ra8
{[%clk 0:02:43.4]} 18... Nd4 {[%clk 0:02:47.5]} 19. Nxd4 {[%clk 0:02:38.2]}
19... exd4 {[%clk 0:02:46.9]} 20. Nd1 {[%clk 0:02:36.9]} 20... d3 {[%clk
0:02:47]} 21. Qb3 {[%clk 0:02:28.9]} 21... Bg4 {[%clk 0:02:41.9]} 22. Rxd8+
{[%clk 0:02:21]} 22... Qxd8 {[%clk 0:02:42.6]} 23. f3 {[%clk 0:02:14.8]} 23...
Qd4+ {[%clk 0:02:42.5]} 24. Kf1 {[%clk 0:02:15.7]} 24... Be6 {[%clk 0:02:42.2]}
25. Qa2 {[%clk 0:01:23.3]} 25... Bxc4 {[%clk 0:02:41.8]} 26. Qd2 {[%clk
0:01:24.3]} 26... Ba6 {[%clk 0:02:38.6]} 27. f4 {[%clk 0:01:16.8]} 27... Bf8
{[%clk 0:02:38.5]} 28. f5 {[%clk 0:01:00.8]} 28... Bxb4 {[%clk 0:02:36.6]} 29.
Qf2 {[%clk 0:00:54.8]} 29... d2+ {[%clk 0:02:36.1]} 30. Kg1 {[%clk 0:00:55.9]}
30... Qa1 {[%clk 0:02:32.6]} 31. Bf3 {[%clk 0:00:53.1]} 31... Qc1 {[%clk
0:02:27.9]} 32. fxg6 {[%clk 0:00:53.3]} 32... Bc5 {[%clk 0:02:25.3]} 33. gxf7+
{[%clk 0:00:53.3]} 33... Kf8 {[%clk 0:02:22.7]} 0-1